Cogmind - Beta 16 @@@ ROGUE MODE // 2026.01.24 @ 19:06:00 Player: luckinvolved Result: Smashed by cave-in Performance ------------- Evolutions (4) 2000 Regions Visited (12) 2400 Robots Destroyed (207) 1035 Value Destroyed (9398) 9398 Prototype IDs (12) 240 Alien Tech Used (0) 0 Bonus (4638) 4638 TOTAL SCORE: 19711 Bonus ------- High Alert Combat Kills 1310 Follower Combat Kills 550 Entered Garrisons 800 Used RIF Installer 2000 Friendly Fire -22 Cogmind --------- Core Integrity 0/850 Matter 300/300 Energy 4/100 System Corruption 20% Temperature Cool (0) Movement Core (50) Location -6/Garrison Parts ------- > --- POWER (1) -------- (None) > --- PROPULSION (4) --- (None) > --- UTILITY (6) ------ Enhanced Optical Array Long-range Terrain Scanner Relay Coupler [Grunt] (25) > --- WEAPON (4) ------- (None) > --- INVENTORY (5) ---- Relay Coupler [NC] (29) Relay Coupler [Grunt] (33) Relay Coupler [Behemoth] (10) Peak State ------------ > --- POWER ------------ Light Quantum Reactor > --- PROPULSION ------- Improved Carbon-fiber Leg Flexi-carbon Leg Flexi-carbon Leg Biometal Leg > --- UTILITY ---------- High-capacity Storage Unit Hardened Medium Armor Plating Hardlight Generator Relay Coupler [Swarmer] Relay Coupler [Grunt] Relay Coupler [Heavy] > --- WEAPON ----------- Enhanced Autogun Enhanced Autogun Railgun Improved Remote Datajack > --- INVENTORY -------- Neutrino Core Particle Reactor Improved Cooling System Huge Storage Unit High-capacity Matter Pod Recoil Stabilizer Advanced Phase Shifter Hardened Light Armor Plating Hardened Medium Armor Plating Hardened Medium Armor Plating Relay Coupler [NC] Relay Coupler [Brawler] Relay Coupler [Duelist] Relay Coupler [Sentry] Gauss Rifle Gauss Rifle Gauss Rifle Rocket Launcher Heavy Rocket Launcher Great Axe [Rating: 78] Favorites ----------- Power Ion Engine Engine Ion Engine Power Core Enhanced Nuclear Core Reactor Particle Reactor Propulsion Light Treads Treads Light Treads Leg Flexi-carbon Leg Flight Unit Advanced Surge Thruster Utility Huge Storage Unit Device Improved Cooling System Storage Huge Storage Unit Processor Enhanced Optical Array Hackware Relay Coupler [Grunt] Protection Hardened Light Armor Plating Weapon Autogun Energy Gun Beam Rifle Ballistic Gun Autogun Launcher Rocket Launcher Special Weapon Improved Remote Datajack Slashing Weapon Great Axe Build | -11 -10 -10 -9 -9 -8 -8 -7 -7 -7 -7 -6 -6 ------- Run | Yrd Mat Min Mat Min Mat Gar Fac Gar Fac Gar Fac Gar Slots Evolved 8 | . . . 2 . 2 . 2 . . . 2 . Power . | . . . . . . . . . . . . . Propulsion 2 | . . . 1 . . . 1 . . . . . Utility 4 | . . . . . 1 . 1 . . . 2 . Weapon 2 | . . . 1 . 1 . . . . . . . Parts Attached 156 | 6 6 1 27 1 8 10 12 8 7 14 29 27 Power 16 | 1 . . 4 . 1 2 1 . . 1 4 2 Engine 10 | 1 . . 4 . 1 2 . . . . 1 1 Core 3 | . . . . . . . 1 . . . 2 . Reactor 3 | . . . . . . . . . . 1 1 1 Propulsion 41 | 2 . 1 6 . 2 3 3 2 3 2 5 12 Treads 24 | 2 . 1 6 . 2 3 3 2 3 2 . . Leg 16 | . . . . . . . . . . . 5 11 Wheel . | . . . . . . . . . . . . . Hover . | . . . . . . . . . . . . . Flight 1 | . . . . . . . . . . . . 1 Utility 48 | 1 5 . 2 1 2 2 4 2 3 7 9 10 Device 11 | . . . . . 1 1 2 2 1 1 1 2 Storage 6 | 1 3 . . . 1 . . . . . 1 . Processor 3 | . . . . . . 1 . . . . 1 1 Hackware 16 | . . . . . . . . . 1 5 4 6 Protection 12 | . 2 . 2 1 . . 2 . 1 1 2 1 Artifact . | . . . . . . . . . . . . . Weapon 51 | 2 1 . 15 . 3 3 4 4 1 4 11 3 Energy Gun 4 | . . . 3 . . . . . . . . 1 Energy Cannon . | . . . . . . . . . . . . . Ballistic Gun 37 | 2 1 . 11 . 2 2 3 4 1 3 7 1 Ballistic Cannon . | . . . . . . . . . . . . . Launcher 5 | . . . . . 1 1 . . . . 3 . Special Weapon 3 | . . . . . . . . . . 1 1 1 Impact Weapon . | . . . . . . . . . . . . . Slashing Weapon 2 | . . . 1 . . . 1 . . . . . Piercing Weapon . | . . . . . . . . . . . . . Special Melee Weapon . | . . . . . . . . . . . . . Unidentified Prototypes 11 | . . . 3 . 1 . 1 . 1 . 5 . Parts Lost 50 | . 1 1 2 . . 2 . 1 . 5 4 34 Power 3 | . . . . . . 1 . . . . . 2 Propulsion 15 | . . 1 . . . . . . . 2 1 11 Utility 17 | . . . 1 . . . . 1 . 1 3 11 Weapon 15 | . 1 . 1 . . 1 . . . 2 . 10 Highest Loss Streak 10 | . 1 1 1 . . 2 . 1 . 3 1 10 To Critical Strikes . | . . . . . . . . . . . . . Average Backups 19 | 1 7 17 19 19 21 24 24 24 25 24 20 13 Power 1 | . 1 2 1 2 2 2 1 2 2 2 1 1 Propulsion 3 | . 3 3 3 3 3 4 4 3 3 3 2 . Utility 9 | . 1 8 8 8 10 10 11 12 14 13 10 9 Weapon 4 | . 1 4 5 6 5 6 7 5 5 5 5 2 Tool/Special . | . . . . . . . . . . . . . Unused Backups 57 | . 1 . 9 2 1 4 4 3 3 7 11 12 Power 6 | . . . 2 . 1 . 1 . . 1 . 1 Propulsion 10 | . . . 3 1 . . . . . . 6 . Utility 35 | . . . 3 1 . 4 3 3 2 5 3 11 Weapon 5 | . 1 . 1 . . . . . . 1 2 . Tool/Special 1 | . . . . . . . . . 1 . . . Average Slot Usage (%) 98 | . 99 100 99 100 98 99 99 100 100 99 99 76 Engine 6 | . 14 14 10 11 9 9 5 . . . 1 3 Core 1 | . . . . . . . 1 7 7 2 2 . Treads 25 | . 28 28 32 33 27 27 30 30 30 29 5 . Leg 2 | . . . . . . . . . . . 20 16 Device 5 | . . . . . 8 9 14 15 8 3 4 . Storage 9 | . 14 14 11 11 9 9 7 7 7 7 6 4 Hackware 4 | . . . . . . . . . 4 10 20 20 Protection 9 | . 13 14 11 11 9 8 7 7 8 7 6 2 Ballistic Gun 27 | . 28 28 30 33 35 33 29 29 28 24 16 11 Special Weapon 1 | . . . . . . . . . . 3 6 2 Peak Build Rating 78 | 6 10 11 19 21 32 33 43 56 62 60 78 68 Average Rating 35 | 4 8 10 15 18 28 30 37 53 60 55 71 50 On Entrance 31 | . 6 10 10 18 21 30 32 43 56 60 59 68 Avg Prop Armor Cover (%) 9 | . . . . . . . . . . . . 9 Naked Turns . | . . . . . . . . . . . . . Heaviest Build 129 | 14 54 53 62 62 107 111 123 128 121 129 129 80 Greatest Support 104 | 40 40 40 60 60 60 60 88 88 104 104 88 86 Greatest Overweight (x) 16 | 2 1 1 1 1 1 1 1 1 1 1 1 16 Average Overweight (x) . | . . 1 . 1 1 1 1 1 1 1 . . Largest Inventory Capacity 25 | 8 20 20 20 20 25 25 25 25 25 25 25 20 Average Capacity 21 | 6 16 20 20 20 23 25 25 25 25 25 21 15 Most Carried 25 | 3 17 19 20 20 25 25 25 25 25 25 25 20 Average Carried 19 | 1 7 17 19 19 22 24 24 24 24 24 20 13 Final Capacity 25 | 8 20 20 20 20 25 25 25 25 25 25 20 5 Final Carried 25 | 3 17 18 20 20 25 25 25 25 25 25 17 3 Class Distribution -------------------- 27% | Bothacker-Tank 24% | Scavenger-Tank 23% | Mutant 20% | Tank Dominant Class ---------------- Mutant | -10/Materials Mutant | -10/Mines Tank | -9/Materials Tank | -9/Mines Tank | -8/Materials Tank | -8/Garrison Scavenger-Tank | -7/Factory Scavenger-Tank | -7/Garrison Bothacker-Tank | -7/Factory Bothacker-Tank | -7/Garrison Bothacker-Tank | -6/Factory Mutant | -6/Garrison Resources | -11 -10 -10 -9 -9 -8 -8 -7 -7 -7 -7 -6 -6 ----------- Run | Yrd Mat Min Mat Min Mat Gar Fac Gar Fac Gar Fac Gar Matter Collected 8917 | 217 372 67 1155 25 321 965 664 1298 347 1214 1283 989 Remotely . | . . . . . . . . . . . . . Salvage Created 8180 | . 434 148 1580 39 310 1032 558 1279 516 844 993 447 Parts 420 | . 23 7 97 . 11 69 28 56 25 37 46 21 Haulers Intercepted 10 | . 1 . 5 . 2 . . . 2 . . . Recyclers Shooed 10 | . . . 3 . 1 . . . 3 . 3 . Parts Field Recycled 5 | . . . . . . . . 5 . . . . Retrieved Matter 14 | . . . . . . . . 14 . . . . Parts Self-Destructed . | . . . . . . . . . . . . . Prevented . | . . . . . . . . . . . . . Parts Restored . | . . . . . . . . . . . . . Kills | -11 -10 -10 -9 -9 -8 -8 -7 -7 -7 -7 -6 -6 ------- Run | Yrd Mat Min Mat Min Mat Gar Fac Gar Fac Gar Fac Gar Combat Hostiles Destroyed 172 | . 8 5 30 1 1 32 9 27 7 20 20 12 Melee 1 | . . . . . . . . . . . . 1 Guns 151 | . 8 5 30 1 1 26 9 27 7 20 11 6 AOE 20 | . . . . . . 6 . . . . 9 5 Classes Destroyed 17 | . 4 1 3 . . 1 2 . . . 4 2 Worker 7 | . 1 . 3 . 1 . . . 1 . 1 . Builder 1 | . . . . . . . . . . . 1 . Hauler 10 | . 1 . 5 . 2 . . . 2 . . . Recycler 8 | . . . 1 . 2 . 1 . 2 . 2 . Operator 1 | . . . . . . . . . . . 1 . Watcher 8 | . 1 . 4 . . . 3 . . . . . Swarmer 59 | . . 3 9 . . 16 4 7 5 9 4 2 Saboteur 1 | . . . . . . . . . . . 1 . Grunt 67 | . 8 2 11 1 1 8 . 15 . 5 11 5 Brawler 1 | . . . . . . . . . . . . 1 Duelist 4 | . . . 1 . . . . . . 2 . 1 Sentry 20 | . . . 9 . . 4 2 1 . 2 1 1 Specialist 4 | . . . . . . 4 . . . . . . Hunter 2 | . . . . . . . 1 1 . . . . Programmer 12 | . . . . . . . 2 3 2 2 2 1 Heavy 1 | . . . . . . . . . . . 1 . Behemoth 1 | . . . . . . . . . . . . 1 Best Kill Streak 9 | . 3 3 3 1 2 9 5 3 3 5 6 3 Combat Bots Only 9 | . 3 3 3 1 1 9 4 3 3 5 4 3 Max Kills in Single Turn 4 | . 2 1 2 1 2 3 1 2 1 2 4 2 Gunslinging 2 | . 1 . . . . 2 . 1 . 1 . . Exploded 3 | . . . . . . 3 . . . . 3 2 Melee 1 | . . . . . . . . . . . . 1 Uniques/NPCs Destroyed . | . . . . . . . . . . . . . Combat | -11 -10 -10 -9 -9 -8 -8 -7 -7 -7 -7 -6 -6 -------- Run | Yrd Mat Min Mat Min Mat Gar Fac Gar Fac Gar Fac Gar Hostile Shots Fired 1147 | . 62 23 138 1 4 95 91 93 32 135 146 327 Missed 387 | . 16 5 45 . 1 29 31 35 7 42 65 111 Hits 760 | . 46 18 93 1 3 66 60 58 25 93 81 216 Melee 16 | . . . . . . . . . . 12 . 4 Projectile 744 | . 46 18 93 1 3 66 60 58 25 81 81 212 AOE 1 | . . . . . . . 1 . . . . . Critical Strikes 25 | . . . 3 . . 1 . 4 . 8 3 6 Damage Taken 10757 | . 594 163 1137 10 98 901 380 654 388 1376 1778 3278 Core 1602 | . 107 33 180 . . 173 10 6 88 154 218 633 Absorbed by Shields 667 | . . . . . . . 271 219 . 133 44 . Redirected to Shielding 24 | . 24 . . . . . . . . . . . Regen/Repaired (Parts) 236 | . . . 188 . . . . . . . 48 . Core Remaining (%) 66 | 100 . 44 . 55 . 68 . . . 63 . . Volleys Fired 530 | . 43 14 100 1 15 52 29 59 19 67 75 56 Largest 4 | . 2 2 3 3 4 4 4 4 4 4 3 4 Hottest 132 | . 40 40 99 69 92 102 94 116 119 119 95 132 Shots Fired 1523 | . 86 28 287 3 60 207 115 230 75 152 161 119 Gun 1445 | . 86 28 287 3 60 205 115 230 75 141 133 82 Cannon . | . . . . . . . . . . . . . Launcher 24 | . . . . . . 2 . . . . 3 19 Special 54 | . . . . . . . . . . 11 25 18 Kinetic 1419 | . 86 28 263 3 60 205 115 230 75 141 133 80 Thermal 24 | . . . 24 . . . . . . . . . Explosive 24 | . . . . . . 2 . . . . 3 19 Electromagnetic 2 | . . . . . . . . . . . . 2 Robot Hit Streak 20 | . 7 3 17 10 5 17 15 14 8 13 20 7 Robot Miss Streak 6 | . 3 4 5 . 3 3 3 6 3 6 6 6 Penetration Max 1 | . . . . . . . . 1 1 1 1 . Secondary Targets 32 | . 3 . 5 . 1 6 1 6 2 5 3 . Max Gunslinging Chain 2 | . 1 . 1 . 1 2 1 1 1 2 1 . Shots Hit Robots 898 | . 61 15 165 1 33 136 67 121 37 95 102 65 Core Hits 374 | . 24 8 61 1 16 52 28 52 17 32 54 29 Critical Kills 3 | . . . . . . . 1 1 . 1 . . Critical Parts Destroyed 12 | . . . . . . . 1 4 3 1 2 1 Critical Strikes 18 | . . . 1 . . 1 2 6 3 2 2 1 Burn 1 | . . . 1 . . . . . . . . . Destroy 17 | . . . . . . 1 2 6 3 2 2 1 Melee Attacks 62 | . . . 2 . . 12 . 3 2 24 11 8 Impact . | . . . . . . . . . . . . . Slashing 62 | . . . 2 . . 12 . 3 2 24 11 8 Piercing . | . . . . . . . . . . . . . Sneak Attacks 5 | . . . . . . . . . . . 5 . Combat Hostiles . | . . . . . . . . . . . . . Follow-up Attacks . | . . . . . . . . . . . . . Damage Inflicted 18404 | . 754 167 2301 18 630 2331 1024 2604 962 1979 3444 2190 Guns 15231 | . 754 167 2301 18 630 2026 1024 2546 962 1828 1853 1122 Cannons . | . . . . . . . . . . . . . Explosions 2518 | . . . . . . 305 . . . . 1197 1016 Melee 653 | . . . . . . . . 58 . 151 392 52 Ramming 2 | . . . . . . . . . . . 2 . Kinetic 15039 | . 754 167 2129 18 630 2026 1024 2546 962 1828 1853 1102 Thermal 711 | . . . 172 . . . . . . . 539 . Explosive 1979 | . . . . . . 305 . . . . 658 1016 Electromagnetic 20 | . . . . . . . . . . . . 20 Impact . | . . . . . . . . . . . . . Slashing 653 | . . . . . . . . 58 . 151 392 52 Piercing . | . . . . . . . . . . . . . Highest Corruption 15 | . 1 1 . . . . 2 2 4 1 1 15 Average Corruption 1 | . 1 1 . . . . 2 2 3 1 1 2 Corruption Purged 4 | . . . . . . . . . 4 . . . Corruption Blocked . | . . . . . . . . . . . . . Effects 107 | . 13 6 . . . . 12 22 18 15 6 15 Message Errors 22 | . 2 4 . . . . 2 5 1 4 2 2 Matter Fused 28 | . 2 1 . . . . 3 7 4 4 3 4 Heat Flow Errors 18 | . 3 . . . . . 4 2 5 . . 4 Energy Discharges 16 | . 3 1 . . . . 2 3 3 3 . 1 Parts Rejected 1 | . . . . . . . . . . . . 1 Data Loss (minor) 13 | . 3 . . . . . . 4 2 2 1 1 Data Loss (major) 4 | . . . . . . . . 1 1 1 . 1 Misfires 1 | . . . . . . . . . . 1 . . Alerts 1 | . . . . . . . . . 1 . . . Weapon Failures 3 | . . . . . . . 1 . 1 . . 1 Overload Shots . | . . . . . . . . . . . . . Overflow Damage 263 | . . . . . . 32 . . . . 221 10 Projectiles . | . . . . . . . . . . . . . Explosions 224 | . . . . . . 32 . . . . 182 10 Melee 39 | . . . . . . . . . . . 39 . Knockbacks . | . . . . . . . . . . . . . Impact . | . . . . . . . . . . . . . Kinetic . | . . . . . . . . . . . . . Secondary . | . . . . . . . . . . . . . Self-Inflicted Damage 677 | . . . . . . . . . . . 453 224 Shots 13 | . . . . . . . . . . . 6 7 Rammed . | . . . . . . . . . . . . . Targets Rammed 1 | . . . . . . . . . . . 1 . Kicked 1 | . . . . . . . . . . . 1 . Crushed . | . . . . . . . . . . . . . Highest Temperature 420 | . 197 32 420 28 143 197 268 314 385 198 174 191 Average Temperature 74 | . 32 11 77 16 47 85 93 97 98 58 58 54 Received Heat Transfer 2868 | . 330 27 405 6 54 315 35 307 . 158 457 774 Effects 9 | . . . 7 . . . . . 2 . . . Energy Bleed 1 | . . . 1 . . . . . . . . . Interference 5 | . . . 3 . . . . . 2 . . . Damage (major) 3 | . . . 3 . . . . . . . . . Siege Activations . | . . . . . . . . . . . . . Martial Activations . | . . . . . . . . . . . . . Shielding Activations . | . . . . . . . . . . . . . Robots Disrupted . | . . . . . . . . . . . . . Combat Hostiles . | . . . . . . . . . . . . . Robots Corrupted . | . . . . . . . . . . . . . Combat Hostiles . | . . . . . . . . . . . . . Parts Fried . | . . . . . . . . . . . . . Impact Corruptions . | . . . . . . . . . . . . . Robots Melted . | . . . . . . . . . . . . . Combat Hostiles . | . . . . . . . . . . . . . Parts Melted 5 | . . . 2 . 2 . . . . . . 1 Heat Transferred 845 | . . . 495 . . . . . . . 350 . Parts Sabotaged . | . . . . . . . . . . . . . Parts Stolen . | . . . . . . . . . . . . . Parts Stripped . | . . . . . . . . . . . . . Power Chain Reactions . | . . . . . . . . . . . . . Alert | -11 -10 -10 -9 -9 -8 -8 -7 -7 -7 -7 -6 -6 ------- Run | Yrd Mat Min Mat Min Mat Gar Fac Gar Fac Gar Fac Gar Maximum Alert Level 4 | . . . 1 . . 3 2 4 2 4 3 3 Low Security (%) 36 | 100 100 100 55 100 100 12 . 2 . . . . Level 1 16 | . . . 44 . . 10 68 26 . 5 7 . Level 2 26 | . . . . . . 40 31 37 100 27 79 19 Level 3 17 | . . . . . . 36 . 23 . 53 13 80 Level 4 2 | . . . . . . . . 10 . 13 . . Level 5 . | . . . . . . . . . . . . . High Security . | . . . . . . . . . . . . . Max Security . | . . . . . . . . . . . . . Peak Influence 1228 | . 82 78 376 142 45 1084 569 1164 612 1228 754 940 Initial 644 | . . . . 142 13 2 569 195 611 319 644 506 Average 398 | . 15 8 212 46 6 628 364 636 523 810 560 763 Influence Increases 7049 | . 325 120 982 58 97 1122 266 999 213 1059 924 884 Destroy 0b10 Robot/C 3760 | . 160 100 600 40 20 660 180 600 140 440 460 360 Destroy 0b10 Robot/NC 195 | . 15 . 65 . 35 . 20 5 25 5 25 . Destroy Leader 640 | . 44 20 198 10 18 30 66 50 44 40 100 20 Allied During Kill 69 | . . . . 8 3 3 . 13 . 4 16 22 Successful Hack 88 | . 15 . 21 . 4 14 . . . 14 10 10 Select Force Hacks 120 | . 60 . 60 . . . . . . . . . Disable Machine 210 | . 15 . . . 15 15 . . . . 165 . Anti-Garrison Action 1350 | . . . . . . 300 . 300 . 500 . 250 Destroy Structure 407 | . 1 . 8 . 2 70 . 31 4 41 118 132 Partial Spotted 15 | . . . . . . . . . . . . 15 Lose Combat Pursuer 195 | . 15 . 30 . . 30 . . . 15 30 75 Influence Decreases 6139 | . 325 120 617 389 127 42 1071 114 921 287 1429 697 Entered New Map 2336 | . . . . 223 21 2 515 84 553 137 584 217 Time Decay 2796 | . 315 110 617 166 99 . 556 . 368 . 565 . Lost Part 480 | . 10 10 . . . 20 . 10 . 50 40 340 Lost Ally 377 | . . . . . 7 20 . 20 . 100 90 140 Purge Threat 150 | . . . . . . . . . . . 150 . Squads Dispatched 22 | . 3 . 4 1 1 . 3 . 3 . 7 . Investigation 9 | . 3 . 2 1 . . 1 . 1 . 1 . Extermination 5 | . . . . . . . 2 . 1 . 2 . Reinforcement 6 | . . . 2 . 1 . . . . . 3 . Assault 2 | . . . . . . . . . 1 . 1 . Garrison . | . . . . . . . . . . . . . Intercept . | . . . . . . . . . . . . . Searches Triggered . | . . . . . . . . . . . . . Construction Impeded 1 | . . . . . . . . . . . 1 . Haulers Reinforced . | . . . . . . . . . . . . . Active Scanning Responses . | . . . . . . . . . . . . . Cargo Convoy Interrupts . | . . . . . . . . . . . . . Stealth | -11 -10 -10 -9 -9 -8 -8 -7 -7 -7 -7 -6 -6 --------- Run | Yrd Mat Min Mat Min Mat Gar Fac Gar Fac Gar Fac Gar Distress Signals 10 | . 3 . 5 . 1 . . . . . 1 . Communications Jammed . | . . . . . . . . . . . . . Distress Signals . | . . . . . . . . . . . . . Times Spotted 277 | . 17 5 41 2 16 35 13 31 8 29 40 40 Peak Tracking Total 16 | . 5 3 6 1 3 4 4 4 4 6 5 16 Tactical Retreats 9 | . 1 . 2 . . 1 . . . 1 1 3 Traps | -11 -10 -10 -9 -9 -8 -8 -7 -7 -7 -7 -6 -6 ------- Run | Yrd Mat Min Mat Min Mat Gar Fac Gar Fac Gar Fac Gar Traps Triggered 36 | . 2 . . . . 10 1 8 . 10 1 4 Indirectly . | . . . . . . . . . . . . . Trap Hack Attempts . | . . . . . . . . . . . . . Triggered . | . . . . . . . . . . . . . Disarmed . | . . . . . . . . . . . . . Reprogrammed . | . . . . . . . . . . . . . Reused . | . . . . . . . . . . . . . Traps Extracted . | . . . . . . . . . . . . . Installed . | . . . . . . . . . . . . . Triggered . | . . . . . . . . . . . . . Machines | -11 -10 -10 -9 -9 -8 -8 -7 -7 -7 -7 -6 -6 ---------- Run | Yrd Mat Min Mat Min Mat Gar Fac Gar Fac Gar Fac Gar Machines Disabled 27 | . 1 . . . 1 1 . 2 . 5 11 6 Max in Single Turn 5 | . 1 . . . 1 1 . 1 . 1 5 2 Garrison Relay 11 | . . . . . . . . 2 . 5 . 4 Phase Generator 1 | . . . . . . . . . . . . 1 Machines Repaired . | . . . . . . . . . . . . . Machines Dismantled . | . . . . . . . . . . . . . Machines Sabotaged . | . . . . . . . . . . . . . Overloaded Fab Kills . | . . . . . . . . . . . . . Hacking | -11 -10 -10 -9 -9 -8 -8 -7 -7 -7 -7 -6 -6 --------- Run | Yrd Mat Min Mat Min Mat Gar Fac Gar Fac Gar Fac Gar Machines Accessed 46 | . 6 . 12 1 2 5 2 3 3 2 9 1 Terminals 25 | . 3 . 7 . . 5 . 3 . 2 4 1 Fabricators 2 | . . . . . . . 1 . 1 . . . Repair Stations 5 | . 1 . 2 . . . . . 1 . 1 . Recycling Units 6 | . 2 . 2 . . . . . . . 2 . Scanalyzers 3 | . . . 1 . 1 . . . . . 1 . Garrison Access 4 | . . . . . 1 . 1 . 1 . 1 . Total Hacks 96 | . 13 . 28 1 2 13 4 5 6 4 16 4 Successful 39 | . 7 . 13 1 1 1 3 1 2 1 8 1 Failed 56 | . 6 . 14 . 1 12 1 4 4 3 8 3 Catastrophic 12 | . 1 . 2 . . 3 . 1 1 1 3 . Database Lockouts 1 | . . . 1 . . . . . . . . . Manual 38 | . 11 . 19 . . . . . . . 8 . Terminals 61 | . 9 . 18 . . 13 . 5 . 4 8 4 Fabricators 5 | . . . . . . . 2 . 3 . . . Repair Stations 12 | . 2 . 5 . . . . . 2 . 3 . Recycling Units 8 | . 2 . 3 . . . . . . . 3 . Scanalyzers 4 | . . . 2 . 1 . . . . . 1 . Garrison Access 5 | . . . . . 1 . 2 . 1 . 1 . Terminal Hacks 9 | . 1 . 2 1 . 1 . 1 . 1 1 1 Robot Analysis 2 | . 1 . 1 . . . . . . . . . Open Door 2 | . . . . 1 . . . 1 . . . . Emergency Access Points 3 | . . . . . . 1 . . . 1 . 1 Terminal Index 2 | . . . 1 . . . . . . . 1 . Fabricator Hacks 2 | . . . . . . . 1 . 1 . . . Network Status 2 | . . . . . . . 1 . 1 . . . Repair Station Hacks 7 | . 1 . 4 . . . . . . . 2 . Scan Component 4 | . 1 . 2 . . . . . . . 1 . Repair 3 | . . . 2 . . . . . . . 1 . Recycling Unit Hacks 2 | . . . . . . . . . . . 2 . Retrieve Matter 2 | . . . . . . . . . . . 2 . Scanalyzer 2 | . . . 2 . . . . . . . . . Retrieve Study 2 | . . . 2 . . . . . . . . . Garrison Access Hacks 5 | . . . . . 1 . 2 . 1 . 1 . Unlock Access 4 | . . . . . 1 . 1 . 1 . 1 . Coupler Status 1 | . . . . . . . 1 . . . . . Unauthorized Hacks 12 | . 5 . 5 . . . . . . . 2 . Terminals 8 | . 3 . 3 . . . . . . . 2 . Botnet 8 | . 3 . 3 . . . . . . . 2 . Fabricators . | . . . . . . . . . . . . . Repair Stations . | . . . . . . . . . . . . . Recycling Units 4 | . 2 . 2 . . . . . . . . . Tunnel 4 | . 2 . 2 . . . . . . . . . Scanalyzers . | . . . . . . . . . . . . . Garrison Access . | . . . . . . . . . . . . . Data Cores Recovered . | . . . . . . . . . . . . . Used . | . . . . . . . . . . . . . Hacking Detections 33 | . 4 . 6 . . 5 2 2 3 1 9 1 Full Trace Events 10 | . 1 . . . . 4 . 2 1 1 1 . Feedback Events 1 | . . . . . . . . . 1 . . . Corruption 1 | . . . . . . . . . 1 . . . Feedback Blocked . | . . . . . . . . . . . . . Robot Schematics Acquired . | . . . . . . . . . . . . . Robots Built . | . . . . . . . . . . . . . Authchips . | . . . . . . . . . . . . . Time . | . . . . . . . . . . . . . Total Robot Build Rating . | . . . . . . . . . . . . . Part Schematics Acquired . | . . . . . . . . . . . . . Parts Built . | . . . . . . . . . . . . . Authchips . | . . . . . . . . . . . . . Time . | . . . . . . . . . . . . . Total Part Build Rating . | . . . . . . . . . . . . . Part Studies Acquired 2 | . . . 2 . . . . . . . . . Parts Repaired 3 | . . . 2 . . . . . . . 1 . Time 132 | . . . 58 . . . . . . . 74 . Parts Recycled . | . . . . . . . . . . . . . Recycled Matter . | . . . . . . . . . . . . . Retrieved Matter . | . . . . . . . . . . . . . Retrieved Components . | . . . . . . . . . . . . . Parts Scanalyzed . | . . . . . . . . . . . . . Part Schematics Acquired . | . . . . . . . . . . . . . Parts Damaged . | . . . . . . . . . . . . . Bothacking | -11 -10 -10 -9 -9 -8 -8 -7 -7 -7 -7 -6 -6 ------------ Run | Yrd Mat Min Mat Min Mat Gar Fac Gar Fac Gar Fac Gar Used RIF Installer 4 | . . . . . . 1 . 1 . 2 . . Zone Cloak 1 | . . . . . . . . . . 1 . . Robot Detection 1 | . . . . . . . . 1 . . . . Autooverride 1 | . . . . . . . . . . 1 . . Robots Hacked 25 | . . . . . . . . . . 7 11 7 Non-combat 4 | . . . . . . . . . . . 4 . Combat 21 | . . . . . . . . . . 7 7 7 Autooverrided 3 | . . . . . . . . . . . 2 1 Robot Hacks Applied 31 | . . . . . . . . . . 7 16 8 parse_system 1 | . . . . . . . . . . . 1 . generate_echo 1 | . . . . . . . . . . . 1 . find_fabricator 1 | . . . . . . . . . . . 1 . find_dsf 1 | . . . . . . . . . . . 1 . drop_inventory 1 | . . . . . . . . . . . 1 . check_alert 1 | . . . . . . . . . . . 1 . purge_threat 1 | . . . . . . . . . . . 1 . find_shortcuts 1 | . . . . . . . . . . . . 1 find_garrison 1 | . . . . . . . . . . . 1 . link_complan 1 | . . . . . . . . . . . 1 . disrupt_area 1 | . . . . . . . . . . . 1 . disable_weapons 2 | . . . . . . . . . . . 1 1 reboot_system 1 | . . . . . . . . . . . . 1 go_dormant 1 | . . . . . . . . . . . 1 . streamctrl_high 6 | . . . . . . . . . . 5 . 1 formatsys_high 10 | . . . . . . . . . . 2 4 4 Relay Couplers Released 53 | . . . . . . . . 8 4 20 . 21 Machine Destruction 45 | . . . . . . . . 8 . 20 . 17 Programmers 8 | . . . . . . . . . 4 . . 4 Attached 15 | . . . . . . . . . 1 5 4 5 Fabnet Peak Effective % . | . . . . . . . . . . . . . Robots Rewired . | . . . . . . . . . . . . . Allies Hacked . | . . . . . . . . . . . . . Hacks Repelled . | . . . . . . . . . . . . . Allies | -11 -10 -10 -9 -9 -8 -8 -7 -7 -7 -7 -6 -6 -------- Run | Yrd Mat Min Mat Min Mat Gar Fac Gar Fac Gar Fac Gar Total Allies 24 | . . . . 3 . . . 1 . 7 5 8 Largest Group 3 | . . . . 3 3 1 . 1 . 1 2 2 Highest-Rated Group 157 | . . . . 40 40 15 . 31 . 90 90 157 Highest-Rated Ally 95 | . . . . 16 16 15 . 31 . 90 90 95 Total Orders 2 | . . . . . . . . . . . 2 . GUARD 1 | . . . . . . . . . . . 1 . AID 1 | . . . . . . . . . . . 1 . Ally Attacks 157 | . . . . 3 22 4 . 25 . 21 35 47 Total Damage 3484 | . . . . 43 209 51 . 372 . 496 1020 1293 Kills 18 | . . . . 1 2 1 . 3 . 2 3 6 Allies Corrupted . | . . . . . . . . . . . . . Allies Melted . | . . . . . . . . . . . . . Intel | -11 -10 -10 -9 -9 -8 -8 -7 -7 -7 -7 -6 -6 ------- Run | Yrd Mat Min Mat Min Mat Gar Fac Gar Fac Gar Fac Gar Active Infowar (turns) 1702 | . . . . . . . . . . . 767 935 Optics 1247 | . . . . . . . . . . . 312 935 Terrain 1 | . . . . . . . . . . . . 1 Triangulation 455 | . . . . . . . . . . . 455 . Robot Analysis Total 2 | . 1 . 1 . . . . . . . . . Derelict Logs Recovered 3 | . . 2 . 1 . . . . . . . . Drone Launches . | . . . . . . . . . . . . . Drone Recoveries . | . . . . . . . . . . . . . Exploration | -11 -10 -10 -9 -9 -8 -8 -7 -7 -7 -7 -6 -6 ------------- Run | Yrd Mat Min Mat Min Mat Gar Fac Gar Fac Gar Fac Gar Turns Passed 17922 | 75 2683 1189 2404 519 449 1788 1622 1631 841 2088 1699 934 Spaces Moved 7640 | 44 1009 475 1020 212 186 748 734 634 315 792 990 481 Core 163 | 13 . . . . . . . . . . . 150 Treads 6301 | 31 1009 475 1020 212 186 748 734 634 315 792 145 . Legs 1129 | . . . . . . . . . . . 845 284 Wheels . | . . . . . . . . . . . . . Hover . | . . . . . . . . . . . . . Flight 47 | . . . . . . . . . . . . 47 Fastest Speed 25 | 50 160 240 160 200 200 200 200 210 210 210 117 25 Average Speed 189 | 145 201 240 171 200 200 200 202 210 229 214 131 132 Slowest Speed 850 | 160 240 240 240 200 200 200 210 210 230 230 210 850 Overloaded Moves . | . . . . . . . . . . . . . Propulsion Burnouts . | . . . . . . . . . . . . . Robots Hopped 1 | . . . . . . . . . . . . 1 Potential Cave-ins 8 | . . . . . . . . . . . 7 1 Cave-ins Triggered 3 | . . . . . . . . . . . . 3 Exploration Rate (%) 53 | 4 97 91 93 36 20 92 22 66 11 73 28 56 Regions Visited 12 Branch Regions 2 Pre-discovered Areas 7 | . 2 2 2 1 . . . . . . . . Known Exits Taken 4 | . . . . . 1 . 1 . 1 . 1 . Unknown Exits Taken 5 | 1 1 1 1 1 . . . . . . . . Scrap Searched 1 | . . 1 . . . . . . . . . . Spaces Dug 26 | . . . 2 . . . . 1 2 11 6 4 Terrain Destroyed 423 | . . . 2 . . 14 . 17 6 14 142 228 Melee 26 | . . . 2 . . . . 1 2 11 6 4 Projectile 38 | . . . . . . . . 16 4 3 7 8 AOE 359 | . . . . . . 14 . . . . 129 216 Terrain Rammed . | . . . . . . . . . . . . . Walls Destroyed . | . . . . . . . . . . . . . Machines Disabled . | . . . . . . . . . . . . . Actions | -11 -10 -10 -9 -9 -8 -8 -7 -7 -7 -7 -6 -6 --------- Run | Yrd Mat Min Mat Min Mat Gar Fac Gar Fac Gar Fac Gar Total 10091 | 52 1572 500 1493 307 235 930 829 793 388 1038 1283 671 Wait 1282 | . 493 9 287 89 11 75 28 45 30 74 99 42 Move 7625 | 43 1008 474 1019 211 185 746 734 633 314 791 989 478 Hop 1 | . . . . . . . . . . . . 1 Pick Up 141 | 3 16 2 18 2 8 5 11 10 5 17 23 21 Fast Attach 40 | 6 1 . 5 . 1 1 . . . 4 10 12 Attach 42 | . 2 1 3 . 2 2 2 1 . 5 9 15 Detach 10 | . 1 . . . 1 1 . . . . 6 1 Swap 155 | . 4 . 29 1 8 17 10 16 10 24 27 9 Drop 141 | . 4 . 30 3 4 7 15 11 8 14 33 12 Fire 530 | . 43 14 100 1 15 52 29 59 19 67 75 56 Melee 62 | . . . 2 . . 12 . 3 2 24 11 8 Ram . | . . . . . . . . . . . . . Kick 1 | . . . . . . . . . . . 1 . Crush . | . . . . . . . . . . . . . Escape Stasis 61 | . . . . . . 12 . 15 . 18 . 16 Rewire . | . . . . . . . . . . . . . Trap . | . . . . . . . . . . . . . Miscellaneous . | . . . . . . . . . . . . . Route ------- -11/Scrapyard -10/Materials (discovered 6 exits: *Mat x3 / [*Min x2] / [*Sub]) -10/Mines -9/Materials (discovered 4 exits: *Mat x2 / *Min x2) -9/Mines -8/Materials -8/Garrison (discovered 3 exits: *Fac x3) -7/Factory (discovered 4 exits: *Fac / Sto / [*Low] / Gar) -7/Garrison (discovered 3 exits: *Fac x3) -7/Factory -7/Garrison (discovered 3 exits: *Fac x3) -6/Factory (discovered 2 exits: [*Fac] / Gar) -6/Garrison History --------- Turn | Location | Event 18 | -11/Scrapyard | Discovered new exit (range 14) 76 | -11/Scrapyard | Entered Materials 309 | -10/Materials | Build established: Mutant 312 | -10/Materials | Discovered new exit (range 8) 502 | -10/Materials | Discovered new exit (range 11) 576 | -10/Materials | Derelicts attacked the area 860 | -10/Materials | Discovered new exit (range 5) 1199 | -10/Materials | Discovered new exit (range 6) 1408 | -10/Materials | Discovered new exit (range 13) 2680 | -10/Materials | Discovered new exit (range 16) 2759 | -10/Materials | Entered Mines 2760 | -10/Mines | Learned location of Storage (-7) 2790 | -10/Mines | Met a Derelict bent on vengeance 3339 | -10/Mines | Discovered new exit (range 12) 3340 | -10/Mines | Core integrity fell below 50% 3948 | -10/Mines | Entered Materials 3948 | -9/Materials | Evolved 2 slots: Propulsion x1, Weapon x1 4189 | -9/Materials | Discovered new exit (range 5) 4294 | -9/Materials | Build established: Tank 4447 | -9/Materials | Discovered new exit (range 12) 4537 | -9/Materials | Repaired Lgt. Treads 4789 | -9/Materials | Discovered new exit (range 8) 5454 | -9/Materials | Discovered new exit (range 16) 5540 | -9/Materials | Repaired Autogun 6265 | -9/Materials | Central database locked down 6352 | -9/Materials | Entered Mines 6353 | -9/Mines | Assembled infested the area 6727 | -9/Mines | Assisted by bots powering up and referring to "LRC-V3" 6791 | -9/Mines | Discovered new exit (range 6) 6808 | -9/Mines | Met a Derelict shopkeep closing up shop 6871 | -9/Mines | Entered Materials 6871 | -8/Materials | Accompanied by 3 allies 6871 | -8/Materials | Evolved 2 slots: Utility x1, Weapon x1 7318 | -8/Materials | Identified exit to Garrison 7320 | -8/Materials | Entered Garrison 7320 | -8/Garrison | Accompanied by 1 ally 7342 | -8/Garrison | Triggered checkpoint 7490 | -8/Garrison | Triggered checkpoint 7503 | -8/Garrison | Triggered checkpoint 7543 | -8/Garrison | Triggered checkpoint 7571 | -8/Garrison | Destroyed 9 combat bots 7629 | -8/Garrison | Discovered new exit (range 8) 7686 | -8/Garrison | Triggered checkpoint 7983 | -8/Garrison | Discovered new exit (range 10) 8042 | -8/Garrison | Triggered checkpoint 8155 | -8/Garrison | Installed Relay Interface Framework 8309 | -8/Garrison | Discovered new exit (range 13) 8330 | -8/Garrison | Triggered checkpoint 8670 | -8/Garrison | Build established: Scavenger-Tank 9108 | -8/Garrison | Entered Factory 9108 | -7/Factory | Evolved 2 slots: Propulsion x1, Utility x1 9109 | -7/Factory | Identified exit to Storage 9978 | -7/Factory | Discovered new exit (range 3) 10470 | -7/Factory | Discovered new exit (range 7) 10730 | -7/Factory | Identified exit to Garrison 10730 | -7/Factory | Entered Garrison 11120 | -7/Garrison | Triggered checkpoint 11359 | -7/Garrison | Discovered new exit (range 11) 11402 | -7/Garrison | Triggered checkpoint 11493 | -7/Garrison | Rescued a captive Derelict 11682 | -7/Garrison | Triggered checkpoint 11870 | -7/Garrison | Expanded RIF knowledge: Robot Detection 11899 | -7/Garrison | Discovered new exit (range 8) 11930 | -7/Garrison | Triggered checkpoint 11961 | -7/Garrison | Garrison Relay disabled 12066 | -7/Garrison | Triggered checkpoint 12222 | -7/Garrison | Garrison Relay disabled 12329 | -7/Garrison | Discovered new exit (range 8) 12361 | -7/Garrison | Entered Factory 12525 | -7/Factory | Build established: Bothacker-Tank 13161 | -7/Factory | First assault squad dispatched 13199 | -7/Factory | Identified exit to Garrison 13202 | -7/Factory | Entered Garrison 13280 | -7/Garrison | Triggered checkpoint 13319 | -7/Garrison | Garrison Relay disabled 13320 | -7/Garrison | Heavy support dispatched to Factory 13694 | -7/Garrison | Triggered checkpoint 13772 | -7/Garrison | Lost 3 parts (1u2w) 13862 | -7/Garrison | Triggered checkpoint 13920 | -7/Garrison | Garrison Relay disabled 14142 | -7/Garrison | Discovered new exit (range 10) 14194 | -7/Garrison | Triggered checkpoint 14333 | -7/Garrison | Heavy support dispatched to Factory 14334 | -7/Garrison | Discovered new exit (range 8) 14537 | -7/Garrison | Expanded RIF knowledge: Autooverride 14563 | -7/Garrison | Garrison Relay disabled 14795 | -7/Garrison | Triggered checkpoint 14814 | -7/Garrison | Garrison Relay disabled 15035 | -7/Garrison | Expanded RIF knowledge: Zone Cloak 15068 | -7/Garrison | Triggered checkpoint 15124 | -7/Garrison | Garrison Relay disabled 15163 | -7/Garrison | Heavy support dispatched to Factory 15214 | -7/Garrison | Discovered new exit (range 10) 15290 | -7/Garrison | Entered Factory 15290 | -6/Factory | Accompanied by 1 ally 15290 | -6/Factory | Evolved 2 slots: Utility x2 15447 | -6/Factory | Discovered new exit (range 15) 15768 | -6/Factory | Repaired Adv. Phase Shifter? 16340 | -6/Factory | First assault squad dispatched 16613 | -6/Factory | P-60 Hacker assimilated allied Guardian 5a 16987 | -6/Factory | Identified exit to Garrison 16989 | -6/Factory | Entered Garrison 17051 | -6/Garrison | Lost 3 parts (2n1u) 17069 | -6/Garrison | Triggered checkpoint 17109 | -6/Garrison | Garrison Relay disabled 17135 | -6/Garrison | Garrison Relay disabled 17163 | -6/Garrison | Triggered checkpoint 17232 | -6/Garrison | Phase Generator disabled 17233 | -6/Garrison | Spotted B-75 Beast 17322 | -6/Garrison | Destroyed B-75 Beast 17344 | -6/Garrison | Lost 6 parts (1p2n3w) 17379 | -6/Garrison | Triggered checkpoint 17447 | -6/Garrison | Lost 5 parts (2n2u1w) 17557 | -6/Garrison | Triggered checkpoint 17586 | -6/Garrison | Core integrity fell below 50% 17670 | -6/Garrison | Lost 10 parts (1p2n3u4w) 17692 | -6/Garrison | Found embedded Infiltrators 17698 | -6/Garrison | Garrison Relay disabled 17742 | -6/Garrison | Garrison Relay disabled 17769 | -6/Garrison | Triggered checkpoint 17887 | -6/Garrison | Core integrity fell below 20% 17901 | -6/Garrison | Triggered checkpoint 17916 | -6/Garrison | Crushed by falling debris 17923 | -6/Garrison | Crushed by falling debris 17923 | -6/Garrison | System corruption reached 10% 17924 | -6/Garrison | Crushed by falling debris 17924 | -6/Garrison | Smashed by cave-in Last Messages --------------- 17904_ System corrupted: Energy discharge (-16). 17905_ S-27 Virus destroyed. 17916_ The unstable cave ceiling collapses. 17916_ Crushed by falling debris. 17916_ Great Axe destroyed. 17916_ System corrupted by crushing effect (+4). 17919_ S-27 Virus destroyed. 17920_ Acquired 10 matter. 17920_ Adv. Surge Thruster destroyed. 17923_ The unstable cave ceiling collapses. 17923_ Crushed by falling debris. 17923_ Hpw. Shock Rifle destroyed. 17923_ System corrupted by crushing effect (+5). 17923_ Relay Coupler [Hunter] destroyed. 17923_ System corrupted by crushing effect (+2). 17924_ Acquired 10 matter. 17924_ The unstable cave ceiling collapses. 17924_ Crushed by falling debris. 17924_ Imp. Signal Interpreter destroyed. 17924_ System corrupted by crushing effect (+5). Map ----- +----------------------------------------------------+ | | | | | | | | | | | | | ???????????????????????????????????? | | ???????????????????????????????????? | | ???????????????????????????????????? | | ???????????????????????????????????? | | ???????????????????????????????????? | | ????????????###?????###?????###????? | | ???????????? ?????! !?????! !????? | | ???????????? ?????! !?????! !????? | | ???????????? ?????! !?????! !????? | | ????????????# #?????# #?????# #????# | | ????????????# #?????# #?????# ???? | | ????????????# #?????# #?????# #????# | | ????????????# #?????# #?????# #????# | | ????????????# #?????# #?????# #????# | | ???????????## ##???## ##???## ##???# | | ??????###### #???#%" #???# #???# | | ??????#!!!## #####" ##### ##### | | ??????#![%/ g | | ??????#!!Y########################## | | ??????####s@##?????????????????????# | | ?????????#####?????????????????????# | | ???????????????????????????????????# | | ???????????????????????????????????# | | ???????????????????????????????????# | | ??????????????#????????????????????# | | ????????????#??????????????????????# | | ???????????????????????????????????# | | ???????????????g????????????#??????# | | ?????????????????#### ###### ###### | | ????????????? =% | | ????????????? * | | ????????????? | | ??????????????# ##### #####"""##### | | ???????????????????????????????????# | | ??????????+????????????????????????# | | ???????????????????????????????????# | | ???????????????????????????????????# | | ???????????????????????????????????# | | ???????????????????????????????????# | | ???????????????????????????????????# | | ???????????????????????????????????# | | ???????????????????????????????????# | | ???????????????????????????????????# | | ???????????????????????????????##### | +----------------------------------------------------+ Best States ------------- Heat Dissipation 61 Coolant Potential 65 Energy Generation 25 Energy Capacity 1100 Matter Stores 300 Matter Capacity 300 Sight Range 22 Terrain Scan Density 10 Armor Coverage 450 Propulsion Shielding 33 Phase Shifting 15 Evasion (%) 70 Recoil Reduction 4 Offensive Hacking 12 Relay Coupler Types 4 Relay Coupler Value 104 Item Schematics ----------------- None Robot Schematics ------------------ None Fabricated ------------ Nothing Repaired ---------- Lgt. Treads | 14% | -9/Materials Autogun | 40% | -9/Materials Adv. Phase Shifter | 4% | -6/Factory Studied --------- Lgt. Treads | -9/Materials | Hacked Autogun | -9/Materials | Hacked Alien Tech Used ----------------- None Achievements -------------- Analysis Probe Botjacking Gunslinger Sprinter Versatile Challenges ------------ None Game ------ Seed CloakingCloakingJetlance Manual? 0 Play Time 02:35:44 Cumulative 134.2 hours Start 2026.01.24 @ 15:45:32 End 2026.01.24 @ 19:06:00 Sessions 1 Manual Loads 0 Difficulty Rogue Special Mode None Game No. 169 Rogue 164 Adventurer 5 Explorer 0 Win Type - Total 3 Types 2/0/0/1/0/0/0/0/0/0 Lore% 43 Gallery% 59 Achievement% 43 Wizard Run 0 Options --------- Layout 0 ASCII 0 Keyboard 1 Movement Vi Keybinds 0 Fullscreen 1 Font 24/Smallcaps Map View 76x50 Zoom Use 0% Tactical HUD 1 Map Filters NONE Filters NONE Steam 1 RUN: 6f78ebf4-da21-4cb7-b355-0b8978504729